fUSD/lending_fUSD_20240712
["ID","MTS","AMOUNT","RATE_DAILY","PERIOD"]
[331774631,1720758665621,-500.0,0.00013897,2]
[331774632,1720758665631,-500.0,0.00013897,2]
[331774633,1720758665641,-500.0,0.00013897,2]
[331774634,1720758665651,-500.0,0.00013897,2]
[331774635,1720758665660,-500.0,0.00013897,2]
[331774636,1720758665670,-500.0,0.00013897,2]
[331774637,1720758665680,-885.71,0.00013897,2]
[331774638,1720758665689,-613.49,0.00013897,2]
[331774639,1720758665698,-500.0,0.00013897,2]
[331774640,1720758665707,-400.77787073,0.00013897,2]
[331774641,1720758665716,-594.95,0.00013897,2]
[331774642,1720758665726,-500.0,0.00013897,2]
[331774643,1720758665735,-500.0,0.00013897,2]
[331774644,1720758665745,-536.43,0.00013897,2]
[331774645,1720758665755,-500.0,0.00013897,2]
[331774646,1720758665764,-500.0,0.00013897,2]
[331774647,1720758665773,-500.0,0.00013897,2]
[331774648,1720758665784,-500.0,0.00013897,2]
[331774649,1720758665794,-500.0,0.00013897,2]
[331774650,1720758665805,-500.0,0.00013897,2]
[331774651,1720758665815,-500.0,0.00013897,2]
[331774652,1720758665826,-550.5,0.00013897,2]
[331774653,1720758665836,-515.02,0.00013897,2]
[331774654,1720758665845,-500.0,0.00013897,2]
[331774655,1720758665855,-500.0,0.00013897,2]
[331774656,1720758665864,-500.0,0.00013897,2]
[331774657,1720758665874,-761.85,0.00013897,2]
[331774658,1720758665883,-432.10336788,0.00013897,2]
[331774659,1720758665893,-500.0,0.00013897,2]
[331774660,1720758665902,-500.0,0.00013897,2]
[331774661,1720758665912,-500.0,0.00013897,2]
[331774662,1720758665921,-500.0,0.00013897,2]
[331774663,1720758665932,-500.0,0.00013897,2]
[331774664,1720758665943,-500.0,0.00013897,2]
[331774665,1720758665954,-500.0,0.00013897,2]
[331774666,1720758665966,-500.0,0.00013897,2]
[331774667,1720758665977,-500.0,0.00013897,2]
[331774668,1720758665986,-500.0,0.00013897,2]
[331774669,1720758665997,-500.0,0.00013897,2]
[331774670,1720758666007,-500.0,0.00013897,2]
[331774671,1720758666016,-500.0,0.00013897,2]
[331774672,1720758666026,-500.0,0.00013897,2]
[331774673,1720758666035,-500.0,0.00013897,2]
[331774674,1720758666045,-500.0,0.00013897,2]
[331774675,1720758666055,-500.0,0.00013897,2]
[331774676,1720758666065,-500.0,0.00013897,2]
[331774677,1720758666075,-500.0,0.00013897,2]
[331774678,1720758666087,-500.0,0.00013897,2]
[331774679,1720758666098,-500.0,0.00013897,2]
[331774680,1720758666108,-500.0,0.00013897,2]
[331774681,1720758666118,-500.0,0.00013897,2]
[331774682,1720758666127,-500.0,0.00013897,2]
[331774683,1720758666137,-500.0,0.00013897,2]
[331774684,1720758666147,-500.0,0.00013897,2]
[331774685,1720758666157,-879.74,0.00013897,2]
[331774686,1720758666167,-500.0,0.00013897,2]
[331774687,1720758666177,-500.0,0.00013897,2]
[331774688,1720758666186,-500.0,0.00013897,2]
[331774689,1720758666195,-510.38,0.00013897,2]
[331774690,1720758666206,-508.09,0.00013897,2]
[331774691,1720758666216,-647.66,0.00013897,2]
[331774692,1720758666226,-500.0,0.00013897,2]
[331774693,1720758666236,-779.84,0.00013897,2]
[331774694,1720758666253,-500.0,0.00013897,2]
[331774695,1720758666262,-500.0,0.00013897,2]
[331774696,1720758666271,-500.0,0.00013897,2]
[331774697,1720758666283,-500.0,0.00013897,2]
[331774698,1720758666293,-350.11940459,0.00013897,2]
[331774699,1720758666302,-500.0,0.00013897,2]
[331774700,1720758666311,-500.0,0.00013897,2]
[331774701,1720758666320,-500.0,0.00013897,2]
[331774702,1720758666330,-500.0,0.00013897,2]
[331774703,1720758666340,-500.0,0.00013897,2]
[331774704,1720758666351,-500.0,0.00013897,2]
[331774705,1720758666362,-500.0,0.00013897,2]
[331774706,1720758666371,-909.35,0.00013897,2]
[331774707,1720758666381,-500.0,0.00013897,2]
[331774708,1720758666390,-500.0,0.00013897,2]
[331774709,1720758666399,-500.0,0.00013897,2]
[331774710,1720758666409,-500.0,0.00013897,2]
[331774711,1720758666419,-500.0,0.00013897,2]
[331774712,1720758666430,-500.0,0.00013897,2]
[331774713,1720758666441,-501.72,0.00013897,2]
[331774714,1720758666450,-500.0,0.00013897,2]
[331774715,1720758666460,-411.89246585,0.00013897,2]
[331774716,1720758666470,-500.0,0.00013897,2]
[331774717,1720758666479,-619.43,0.00013897,2]
[331774718,1720758666488,-500.0,0.00013897,2]
[331774719,1720758666500,-567.43,0.00013897,2]
[331774720,1720758666509,-400.25535866,0.00013897,2]
[331774721,1720758666519,-500.0,0.00013897,2]
[331774722,1720758666529,-500.0,0.00013897,2]
[331774723,1720758666538,-500.0,0.00013897,2]
[331774724,1720758666547,-500.0,0.00013897,2]
[331774725,1720758666557,-500.0,0.00013897,2]
[331774726,1720758666567,-1018.14,0.00013897,2]
[331774727,1720758666576,-500.0,0.00013897,2]
[331774728,1720758666586,-500.0,0.00013897,2]
[331774729,1720758666595,-1152.0,0.00013897,2]
[331774730,1720758666604,-678.9,0.00013897,2]
[331774731,1720758666614,-500.0,0.00013897,2]
[331774732,1720758666623,-790.29,0.00013897,2]
[331774733,1720758666633,-500.0,0.00013897,2]
[331774734,1720758666644,-641.65164797,0.00013897,2]
[331774735,1720758666653,-336.04070726,0.00013897,2]
[331774736,1720758666662,-500.0,0.00013897,2]
[331774737,1720758666672,-500.0,0.00013897,2]
[331774738,1720758666681,-672.45,0.00013897,2]
[331774739,1720758666690,-500.0,0.00013897,2]
[331774740,1720758666700,-698.41,0.00013897,2]
[331774741,1720758666709,-500.0,0.00013897,2]
[331774742,1720758666719,-500.0,0.00013897,2]
[331774743,1720758666728,-239.79,0.00013897,2]
[331774744,1720758666737,-500.0,0.00013897,2]
[331774745,1720758666747,-500.0,0.00013897,2]
[331774746,1720758666756,-1563.28,0.00013897,2]
[331774747,1720758666765,-500.0,0.00013897,2]
[331774748,1720758666775,-606.81,0.00013897,2]
[331774749,1720758666784,-500.0,0.00013897,2]
[331774750,1720758666793,-500.0,0.00013897,2]
[331774751,1720758666802,-500.0,0.00013897,2]
[331774752,1720758666811,-500.0,0.00013897,2]
[331774753,1720758666821,-500.0,0.00013897,2]
[331774754,1720758666831,-876.88,0.00013897,2]
[331774755,1720758666841,-500.0,0.00013897,2]
[331774756,1720758666851,-500.0,0.00013897,2]
[331774757,1720758666860,-237.25,0.00013897,2]
[331774758,1720758666871,-500.0,0.00013897,2]
[331774759,1720758666880,-500.0,0.00013897,2]
[331774760,1720758666888,-1414.21,0.00013897,2]
[331774761,1720758666898,-500.0,0.00013897,2]
[331774762,1720758666907,-500.0,0.00013897,2]
[331774763,1720758666917,-500.0,0.00013897,2]
[331774764,1720758666926,-700.97,0.00013897,2]
[331774765,1720758666936,-586.72,0.00013897,2]
[331774766,1720758666946,-500.0,0.00013897,2]
[331774767,1720758666956,-500.0,0.00013897,2]
[331774768,1720758666965,-500.0,0.00013897,2]
[331774769,1720758666975,-747.32,0.00013897,2]
[331774770,1720758666984,-500.0,0.00013897,2]
[331774771,1720758666994,-519.4,0.00013897,2]
[331774772,1720758667005,-500.0,0.00013897,2]
[331774773,1720758667014,-500.0,0.00013897,2]
[331774774,1720758667022,-500.0,0.00013897,2]
[331774775,1720758667031,-598.07466426,0.00013897,2]
[331774776,1720758667041,-500.0,0.00013897,2]
[331774777,1720758667052,-854.24,0.00013897,2]
[331774778,1720758667062,-151.22,0.00013897,2]
[331774779,1720758667071,-559.85,0.00013897,2]
[331774780,1720758667080,-694.46,0.00013897,2]
[331774781,1720758667089,-500.0,0.00013897,2]
[331774782,1720758667099,-500.0,0.00013897,2]
[331774783,1720758667108,-500.0,0.00013897,2]
[331774784,1720758667117,-500.0,0.00013897,2]
[331774785,1720758667127,-500.0,0.00013897,2]
[331774786,1720758667136,-579.52,0.00013897,2]
[331774787,1720758667145,-500.0,0.00013897,2]
[331774788,1720758667155,-621.28,0.00013897,2]
[331774789,1720758667165,-573.48,0.00013897,2]
[331774790,1720758667174,-500.0,0.00013897,2]
[331774791,1720758667184,-500.0,0.00013897,2]
[331774792,1720758667193,-672.74,0.00013897,2]
[331774793,1720758667202,-500.0,0.00013897,2]
[331774794,1720758667211,-500.0,0.00013897,2]
[331774795,1720758667221,-500.0,0.00013897,2]
[331774796,1720758667231,-500.0,0.00013897,2]
[331774797,1720758667242,-500.0,0.00013897,2]
[331774798,1720758667254,-500.0,0.00013897,2]
[331774799,1720758667264,-513.9,0.00013897,2]
[331774800,1720758667273,-500.0,0.00013897,2]
[331774801,1720758667283,-500.0,0.00013897,2]
[331774802,1720758667293,-500.0,0.00013897,2]
[331774803,1720758667302,-874.84,0.00013897,2]
[331774804,1720758667311,-500.0,0.00013897,2]
[331774805,1720758667322,-500.0,0.00013897,2]
[331774806,1720758667332,-500.0,0.00013897,2]
[331774807,1720758667341,-610.95,0.00013897,2]
[331774808,1720758667351,-439.22,0.00013897,2]
[331774809,1720758667361,-500.0,0.00013897,2]
[331774810,1720758667370,-500.0,0.00013897,2]
[331774811,1720758667380,-633.49,0.00013897,2]
[331774812,1720758667389,-500.0,0.00013897,2]
[331774813,1720758667398,-500.0,0.00013897,2]
[331774814,1720758667408,-500.0,0.00013897,2]
[331774815,1720758667417,-535.59,0.00013897,2]
[331774816,1720758667427,-924.7,0.00013897,2]
[331774817,1720758667436,-500.0,0.00013897,2]
[331774818,1720758667445,-625.48,0.00013897,2]
[331774819,1720758667455,-598.5,0.00013897,2]
[331774820,1720758667464,-788.29,0.00013897,2]
[331774821,1720758667474,-273.01,0.00013897,2]
[331774822,1720758667484,-500.0,0.00013897,2]
[331774823,1720758667494,-500.0,0.00013897,2]
[331774824,1720758667504,-500.0,0.00013897,2]
[331774825,1720758667514,-500.0,0.00013897,2]
[331774826,1720758667523,-500.0,0.00013897,2]
[331774827,1720758667533,-853.63,0.00013897,2]
[331774828,1720758667543,-500.0,0.00013897,2]
[331774829,1720758667553,-443.4950807,0.00013897,2]
[331774830,1720758667564,-512.18,0.00013897,2]
[331774831,1720758667573,-603.96,0.00013897,2]
[331774832,1720758667582,-500.0,0.00013897,2]
[331774833,1720758667592,-306.69,0.00013897,2]
[331774834,1720758667601,-500.0,0.00013897,2]
[331774835,1720758667611,-500.0,0.00013897,2]
[331774836,1720758667620,-561.04,0.00013897,2]
[331774837,1720758667629,-500.0,0.00013897,2]
[331774838,1720758667638,-703.79,0.00013897,2]
[331774839,1720758667647,-500.0,0.00013897,2]
[331774840,1720758667656,-500.0,0.00013897,2]
[331774841,1720758667665,-500.0,0.00013897,2]
[331774842,1720758667675,-844.06,0.00013897,2]
[331774843,1720758667683,-500.0,0.00013897,2]
[331774844,1720758667693,-2218.03,0.00013897,2]
[331774845,1720758667703,-697.26,0.00013897,2]
[331774846,1720758667712,-500.0,0.00013897,2]
[331774847,1720758667724,-574.36,0.00013897,2]
[331774848,1720758667735,-995.23,0.00013897,2]
[331774849,1720758667748,-500.0,0.00013897,2]
[331774850,1720758667759,-500.0,0.00013897,2]
[331774851,1720758667769,-164.03,0.00013897,2]
[331774852,1720758667778,-500.0,0.00013897,2]
[331774853,1720758667787,-709.65,0.00013897,2]
[331774854,1720758667796,-704.23,0.00013897,2]
[331774855,1720758667809,-500.0,0.00013897,2]
[331774856,1720758667818,-500.0,0.00013897,2]
[331774857,1720758667827,-264.62,0.00013897,2]
[331774858,1720758667836,-500.0,0.00013897,2]
[331774859,1720758667846,-500.0,0.00013897,2]
[331774860,1720758667856,-500.0,0.00013897,2]
[331774861,1720758667867,-500.0,0.00013897,2]
[331774862,1720758667877,-500.0,0.00013897,2]
[331774863,1720758667886,-500.0,0.00013897,2]
[331774864,1720758667896,-659.57,0.00013897,2]
[331774865,1720758667905,-500.0,0.00013897,2]
[331774866,1720758667914,-632.13,0.00013897,2]
[331774867,1720758667923,-500.0,0.00013897,2]
[331774868,1720758667933,-500.0,0.00013897,2]
[331774869,1720758667944,-500.0,0.00013897,2]
[331774870,1720758667955,-574.76688122,0.00013897,2]
[331774871,1720758667964,-500.0,0.00013897,2]
[331774872,1720758667975,-500.0,0.00013897,2]
[331774873,1720758667987,-500.0,0.00013897,2]
[331774874,1720758667999,-619.86,0.00013897,2]
[331774875,1720758668008,-500.0,0.00013897,2]
[331774876,1720758668017,-500.0,0.00013897,2]
[331774877,1720758668026,-500.0,0.00013897,2]
[331774878,1720758668036,-500.0,0.00013897,2]
[331774879,1720758668046,-500.0,0.00013897,2]
[331774880,1720758668055,-500.0,0.00013897,2]
[331774881,1720758668067,-500.0,0.00013897,2]
[331774882,1720758668078,-500.0,0.00013897,2]
[331774883,1720758668088,-500.0,0.00013897,2]
[331774884,1720758668099,-919.98,0.00013897,2]
[331774885,1720758668109,-500.0,0.00013897,2]
[331774886,1720758668119,-1129.97,0.00013897,2]
[331774887,1720758668128,-500.0,0.00013897,2]
[331774888,1720758668137,-500.0,0.00013897,2]
[331774889,1720758668148,-174.95,0.00013897,2]
[331774890,1720758668158,-815.63,0.00013897,2]
[331774891,1720758668169,-500.0,0.00013897,2]
[331774892,1720758668179,-500.0,0.00013897,2]
[331774893,1720758668189,-715.46,0.00013897,2]
[331774894,1720758668199,-231.44,0.00013897,2]
[331774895,1720758668208,-500.0,0.00013897,2]
[331774896,1720758668218,-500.0,0.00013897,2]
[331774897,1720758668227,-500.0,0.00013897,2]
[331774898,1720758668237,-500.0,0.00013897,2]
[331774899,1720758668253,-634.19,0.00013897,2]
[331774900,1720758668262,-500.0,0.00013897,2]
[331774901,1720758668272,-1014.38,0.00013897,2]
[331774902,1720758668282,-500.0,0.00013897,2]
[331774903,1720758668291,-475.94,0.00013897,2]
[331774904,1720758668300,-500.0,0.00013897,2]
[331774905,1720758668309,-503.77,0.00013897,2]
[331774906,1720758668320,-500.0,0.00013897,2]
[331774907,1720758668329,-500.0,0.00013897,2]
[331774908,1720758668339,-518.65,0.00013897,2]
[331774909,1720758668349,-500.0,0.00013897,2]
[331774910,1720758668358,-1153.24,0.00013897,2]
[331774911,1720758668367,-500.0,0.00013897,2]
[331774912,1720758668377,-500.0,0.00013897,2]
[331774913,1720758668386,-500.0,0.00013897,2]
[331774914,1720758668396,-500.0,0.00013897,2]
[331774915,1720758668405,-500.0,0.00013897,2]
[331774916,1720758668415,-500.0,0.00013897,2]
[331774917,1720758668425,-500.0,0.00013897,2]
[331774918,1720758668434,-187.05,0.00013897,2]
[331774919,1720758668444,-646.02,0.00013897,2]
[331774920,1720758668454,-500.0,0.00013897,2]
[331774921,1720758668465,-500.0,0.00013897,2]
[331774922,1720758668475,-500.0,0.00013897,2]
[331774923,1720758668486,-500.0,0.00013897,2]
[331774924,1720758668496,-500.0,0.00013897,2]
[331774925,1720758668509,-714.72,0.00013897,2]
[331774926,1720758668518,-500.0,0.00013897,2]
[331774927,1720758668527,-500.0,0.00013897,2]
[331774928,1720758668537,-500.0,0.00013897,2]
[331774929,1720758668548,-500.0,0.00013897,2]
[331774930,1720758668560,-500.0,0.00013897,2]
[331774931,1720758668571,-635.64,0.00013897,2]
[331774932,1720758668582,-500.0,0.00013897,2]
[331774933,1720758668592,-500.0,0.00013898,2]
[331774934,1720758668603,-500.0,0.00013898,2]
[331774935,1720758668612,-500.0,0.00013898,2]
[331774936,1720758668622,-500.0,0.00013898,2]
[331774937,1720758668632,-500.0,0.00013898,2]
[331774938,1720758668643,-500.0,0.00013898,2]
[331774939,1720758668653,-500.0,0.00013898,2]
[331774940,1720758668663,-500.0,0.00013898,2]
[331774941,1720758668673,-625.72,0.00013898,2]
[331774942,1720758668683,-500.0,0.00013898,2]
[331774943,1720758668694,-620.36,0.00013898,2]
[331774944,1720758668703,-500.0,0.00013898,2]
[331774945,1720758668713,-500.0,0.00013898,2]
[331774946,1720758668723,-500.0,0.00013898,2]
[331774947,1720758668732,-500.0,0.00013898,2]
[331774948,1720758668741,-500.0,0.00013898,2]
[331774949,1720758668750,-500.0,0.00013898,2]
[331774950,1720758668760,-269.73227948,0.00013899,2]
[331774951,1720758668769,-576.0,0.000139,2]
[331774952,1720758668779,-500.0,0.0001395,2]
[331774953,1720758668788,-500.0,0.0001395,2]
[331774954,1720758668798,-500.0,0.0001395,2]
[331774955,1720758668807,-500.0,0.0001395,2]
[331774956,1720758668817,-803.48,0.0001395,2]
[331774957,1720758668826,-500.0,0.0001395,2]
[331774958,1720758668835,-921.35,0.0001395,2]
[331774959,1720758668844,-500.0,0.0001395,2]
[331774960,1720758668853,-649.78,0.0001395,2]
[331774961,1720758668863,-616.09,0.0001395,2]
[331774962,1720758668872,-500.0,0.0001395,2]
[331774963,1720758668881,-500.0,0.0001395,2]
[331774964,1720758668891,-500.0,0.0001395,2]
[331774965,1720758668900,-500.0,0.0001395,2]
[331774966,1720758668910,-500.0,0.0001395,2]
[331774967,1720758668919,-5136.07,0.0001395,2]
[331774968,1720758668929,-515.07,0.0001395,2]
[331774969,1720758668938,-250.57629357,0.0001395,2]
[331774970,1720758668948,-1457.13,0.00013951,2]
[331774971,1720758668958,-500.0,0.00013951,2]
[331774972,1720758668967,-500.0,0.00013951,2]
[331774973,1720758668976,-500.0,0.00013951,2]
[331774974,1720758668986,-628.47,0.00013951,2]
[331774975,1720758668995,-1036.02,0.00013951,2]
[331774976,1720758669009,-578.62,0.00013951,2]
[331774977,1720758669018,-692.72,0.00013951,2]
[331774978,1720758669028,-619.38,0.00013951,2]
[331774979,1720758669036,-944.04,0.00013951,2]
[331774980,1720758669045,-500.0,0.00013951,2]
[331774981,1720758669055,-1005.7,0.00013951,2]
[331774982,1720758669063,-834.27,0.00013951,2]
[331774983,1720758669072,-1359.7,0.00013951,2]
[331774984,1720758669082,-708.71,0.00013951,2]
[331774985,1720758669091,-1294.23,0.00013951,2]
[331774986,1720758669100,-1564.21,0.00013951,2]
[331774987,1720758669110,-761.03,0.00013951,2]
[331774988,1720758669119,-500.0,0.00013951,2]
[331774989,1720758669128,-993.48,0.00013951,2]
[331774990,1720758669138,-500.0,0.00013951,2]
[331774991,1720758669147,-794.46,0.00013951,2]
[331774992,1720758669157,-500.0,0.00013951,2]
[331774993,1720758669166,-500.0,0.00013951,2]
[331774994,1720758669176,-500.0,0.00013951,2]
[331774995,1720758669185,-677.22,0.00013951,2]
[331774996,1720758669195,-500.0,0.00013951,2]
[331774997,1720758669205,-563.31,0.00013951,2]
[331774998,1720758669215,-517.9,0.00013951,2]
[331774999,1720758669225,-701.32,0.00013951,2]
[331775000,1720758669235,-924.74,0.00013951,2]
[331775001,1720758669247,-1270.13,0.00013951,2]
[331775002,1720758669257,-500.0,0.00013951,2]
[331775003,1720758669267,-1168.36,0.00013951,2]
[331775004,1720758669278,-830.61,0.00013951,2]
[331775005,1720758669288,-500.0,0.00013951,2]
[331775006,1720758669298,-500.0,0.00013951,2]
[331775007,1720758669308,-177.75,0.00013951,2]
[331775008,1720758669317,-777.96,0.00013951,2]
[331775009,1720758669327,-784.77,0.00013951,2]
[331775010,1720758669337,-455.18373358,0.00013951,2]
[331775011,1720758669347,-1569.26,0.00013951,2]
[331775012,1720758669357,-764.63,0.00013951,2]
[331775013,1720758669367,-500.0,0.00013951,2]
[331775014,1720758669377,-815.13,0.00013951,2]
[331775015,1720758669386,-173.34689994,0.00013951,2]
[331775016,1720758669396,-1683.08,0.00013951,2]
[331775017,1720758669406,-768.06,0.00013951,2]
[331775018,1720758669416,-500.0,0.00013951,2]
[331775019,1720758669426,-851.93,0.00013951,2]
[331775020,1720758669435,-1238.01,0.00013951,2]
[331775021,1720758669445,-500.0,0.00013951,2]
[331775022,1720758669455,-518.34,0.00013951,2]
[331775023,1720758669464,-717.7,0.00013951,2]
[331775024,1720758669474,-1693.52,0.00013951,2]
[331775025,1720758669484,-1094.11,0.00013951,2]
[331775026,1720758669494,-500.0,0.00013951,2]
[331775027,1720758669504,-507.61,0.00013951,2]
[331775028,1720758669515,-886.83,0.00013951,2]
[331775029,1720758669525,-500.0,0.00013951,2]
[331775030,1720758669534,-614.13,0.00013951,2]
[331775031,1720758669545,-500.0,0.00013951,2]
[331775032,1720758669555,-500.0,0.00013951,2]
[331775033,1720758669565,-892.4,0.00013951,2]
[331775034,1720758669575,-500.0,0.00013951,2]
[331775035,1720758669585,-525.88,0.00013951,2]
[331775036,1720758669595,-500.0,0.00013951,2]
[331775037,1720758669605,-500.0,0.00013951,2]
[331775038,1720758669615,-500.0,0.00013951,2]
[331775039,1720758669625,-588.35,0.00013951,2]
[331775040,1720758669635,-500.0,0.00013951,2]
[331775041,1720758669645,-1397.01,0.00013951,2]
[331775042,1720758669655,-500.0,0.00013951,2]
[331775043,1720758669665,-500.0,0.00013951,2]
[331775044,1720758669675,-500.0,0.00013951,2]
[331775045,1720758669685,-500.0,0.00013951,2]
[331775046,1720758669696,-589.59,0.00013951,2]
[331775047,1720758669706,-500.0,0.00013951,2]
[331775048,1720758669716,-730.81,0.00013951,2]
[331775049,1720758669726,-500.0,0.00013951,2]
[331775050,1720758669736,-817.94,0.00013951,2]
[331775051,1720758669745,-500.0,0.00013951,2]
[331775052,1720758669755,-540.85,0.00013951,2]
[331775053,1720758669765,-500.0,0.00013951,2]
[331775054,1720758669775,-509.31,0.00013951,2]
[331775055,1720758669784,-786.31,0.00013951,2]
[331775056,1720758669794,-875.18,0.00013951,2]
[331775057,1720758669804,-888.22,0.00013951,2]
[331775058,1720758669814,-549.6,0.00013951,2]
[331775059,1720758669824,-1401.22,0.00013951,2]
[331775060,1720758669834,-810.45,0.00013951,2]
[331775061,1720758669844,-667.36,0.00013951,2]
[331775062,1720758669859,-507.24,0.00013951,2]
[331775063,1720758669869,-500.0,0.00013951,2]
[331775064,1720758669879,-779.1,0.00013951,2]
[331775065,1720758669889,-864.53,0.00013951,2]
[331775066,1720758669899,-922.96,0.00013951,2]
[331775067,1720758669909,-500.0,0.00013951,2]
[331775068,1720758669919,-500.0,0.00013951,2]
[331775069,1720758669929,-671.41,0.00013951,2]
[331775070,1720758669939,-543.85,0.00013951,2]
[331775071,1720758669949,-598.04,0.00013951,2]
[331775072,1720758669959,-986.72,0.00013951,2]
[331775073,1720758669969,-500.0,0.00013951,2]
[331775074,1720758669979,-618.73,0.00013951,2]
[331775075,1720758669989,-500.0,0.00013951,2]
[331775076,1720758669999,-500.0,0.00013951,2]
[331775077,1720758670016,-500.0,0.00013951,2]
[331775078,1720758670026,-500.0,0.00013951,2]
[331775079,1720758670036,-500.0,0.00013951,2]
[331775080,1720758670046,-740.92,0.00013951,2]
[331775081,1720758670056,-604.37,0.00013951,2]
[331775082,1720758670066,-500.0,0.00013951,2]
[331775083,1720758670078,-786.28,0.00013951,2]
[331775084,1720758670089,-538.55,0.00013951,2]
[331775085,1720758670098,-538.0,0.00013951,2]
[331775086,1720758670108,-1448.91,0.00013951,2]
[331775087,1720758670118,-500.0,0.00013951,2]
[331775088,1720758670128,-500.0,0.00013951,2]
[331775089,1720758670138,-642.33,0.00013951,2]
[331775090,1720758670148,-500.0,0.00013951,2]
[331775091,1720758670158,-1361.18,0.00013951,2]
[331775092,1720758670169,-500.0,0.00013951,2]
[331775093,1720758670179,-500.0,0.00013951,2]
[331775094,1720758670189,-500.0,0.00013951,2]
[331775095,1720758670200,-1037.01,0.00013951,2]
[331775096,1720758670210,-690.84,0.00013951,2]
[331775097,1720758670220,-509.41,0.00013951,2]
[331775098,1720758670230,-589.35,0.00013951,2]
[331775099,1720758670241,-500.0,0.00013951,2]
[331775100,1720758670254,-500.0,0.00013951,2]
[331775101,1720758670264,-500.0,0.00013951,2]
[331775102,1720758670274,-551.28,0.00013951,2]
[331775103,1720758670284,-500.0,0.00013951,2]
[331775104,1720758670295,-556.86,0.00013951,2]
[331775105,1720758670305,-746.04,0.00013951,2]
[331775106,1720758670315,-666.65,0.00013951,2]
[331775107,1720758670325,-753.45,0.00013951,2]
[331775108,1720758670335,-500.0,0.00013951,2]
[331775109,1720758670346,-790.62,0.00013951,2]
[331775110,1720758670356,-854.79,0.00013951,2]
[331775111,1720758670366,-500.0,0.00013951,2]
[331775112,1720758670376,-198.58656565,0.00013951,2]
[331775113,1720758670386,-330.40161232,0.00013951,2]
[331775114,1720758670396,-500.0,0.00013951,2]
[331775115,1720758670406,-721.56,0.00013951,2]
[331775116,1720758670416,-532.04,0.00013951,2]
[331775117,1720758670426,-1494.4,0.00013951,2]
[331775118,1720758670436,-1285.5,0.00013951,2]
[331775119,1720758670446,-1099.28,0.00013951,2]
[331775120,1720758670456,-628.38,0.00013951,2]
[331775121,1720758670466,-500.0,0.00013951,2]
[331775122,1720758670476,-500.0,0.00013951,2]
[331775123,1720758670485,-500.0,0.00013951,2]
[331775124,1720758670495,-500.0,0.00013951,2]
[331775125,1720758670505,-862.92,0.00013951,2]
[331775126,1720758670515,-500.0,0.00013951,2]
[331775127,1720758670526,-500.0,0.00013951,2]
[331775128,1720758670535,-736.95,0.00013951,2]
[331775129,1720758670545,-1127.31,0.00013951,2]
[331775130,1720758670555,-617.94644437,0.00013951,2]